bitfinex/quotes_BTCUSD_20250331
["timestamp","ask_amount","ask_price","bid_price","bid_amount"]
[1743445564375,0.252043,83319.0,83318.0,0.1419366]
[1743445564576,0.252043,83319.0,83318.0,0.1429366]
[1743445564781,0.252043,83319.0,83318.0,0.1409366]
[1743445565156,0.252043,83319.0,83318.0,0.1419366]
[1743445565903,0.252043,83319.0,83318.0,0.1429366]
[1743445566817,0.252043,83319.0,83318.0,0.5589366]
[1743445569189,4.625e-05,83332.0,83323.0,0.012001]
[1743445569406,4.625e-05,83332.0,83325.0,0.081]
[1743445569407,0.240021,83326.0,83325.0,0.081]
[1743445569792,0.252022,83326.0,83325.0,0.081]
[1743445570584,0.240021,83326.0,83325.0,0.081]
[1743445570765,0.240021,83326.0,83325.0,0.085]
[1743445570970,0.240021,83326.0,83325.0,0.081]
[1743445571163,0.012,83328.0,83325.0,0.081]
[1743445571364,0.240021,83326.0,83325.0,0.085]
[1743445571547,0.252022,83326.0,83325.0,0.085]
[1743445571756,0.252022,83326.0,83325.0,0.081]
[1743445571958,0.252022,83326.0,83325.0,0.085]
[1743445572202,0.252022,83326.0,83325.0,0.089]
[1743445572402,0.252022,83326.0,83325.0,0.085]
[1743445572604,0.252022,83326.0,83325.0,0.081]
[1743445573061,0.252022,83326.0,83325.0,0.085]
[1743445573704,0.252022,83326.0,83325.0,0.089]
[1743445573922,0.252022,83326.0,83325.0,0.085]
[1743445574272,0.252022,83326.0,83325.0,0.084]
[1743445574472,0.252022,83326.0,83325.0,0.084337]
[1743445574780,0.240021,83326.0,83325.0,0.088337]
[1743445574964,0.252022,83326.0,83325.0,0.088337]
[1743445575876,0.240021,83326.0,83325.0,0.088337]
[1743445576082,0.2401865,83327.0,83325.0,0.088337]
[1743445576083,0.0001685,83327.0,83326.0,0.252022]
[1743445576285,0.0001685,83327.0,83326.0,0.37462586]
[1743445577702,0.0001685,83327.0,83326.0,0.45502586]
[1743445577863,0.0001685,83327.0,83326.0,0.50382586]
[1743445578270,0.0001685,83327.0,83326.0,0.93436671]
[1743445578473,0.0001685,83327.0,83326.0,1.23836671]
[1743445578707,4.625e-05,83332.0,83331.0,0.678206]
[1743445578909,0.0001685,83355.0,83354.0,0.251937]
[1743445579147,0.0001685,83355.0,83354.0,1.68025461]
[1743445580178,0.0011685,83355.0,83354.0,1.68025461]
[1743445580971,0.0011685,83355.0,83354.0,1.42831761]
[1743445581368,0.0031685,83355.0,83354.0,1.42831761]
[1743445582560,0.2431055,83355.0,83354.0,1.42831761]
[1743445582768,0.2551015,83355.0,83354.0,1.17947375]
[1743445585535,0.0031685,83355.0,83354.0,1.31407461]
[1743445585752,0.0031685,83355.0,83354.0,1.55401461]
[1743445585987,0.0031685,83355.0,83354.0,1.54201761]
[1743445586211,0.0031685,83355.0,83354.0,1.30207761]
[1743445586460,0.2551015,83355.0,83354.0,1.30207761]
[1743445587410,0.2551015,83355.0,83354.0,1.17947375]
[1743445589351,0.2551015,83355.0,83354.0,1.17943375]
[1743445590384,0.2551015,83355.0,83354.0,0.76348]
[1743445592478,0.2551015,83355.0,83354.0,0.623]
[1743445592658,0.2551015,83355.0,83354.0,0.76348]
[1743445593349,0.2551015,83355.0,83354.0,0.623]
[1743445593815,0.252,83333.0,83332.0,0.41595375]
[1743445594029,0.252,83333.0,83332.0,1.03879375]
[1743445595089,0.252,83333.0,83332.0,1.18427375]
[1743445595499,0.252,83333.0,83332.0,1.17927375]
[1743445595911,0.252,83333.0,83332.0,1.18327375]
[1743445596351,0.251993,83336.0,83333.0,0.239999]
[1743445596533,0.011999,83336.0,83332.0,1.18327375]
[1743445597186,0.239977,83342.0,83333.0,0.1370036]
[1743445597399,0.239992,83337.0,83334.0,0.319698]
[1743445597615,0.239992,83337.0,83335.0,0.12260386]
[1743445598290,0.239985,83339.0,83336.0,0.239992]
[1743445598494,0.239986,83338.0,83335.0,0.12260386]
[1743445598667,0.239991,83337.0,83335.0,0.12260386]
[1743445598874,0.251991,83336.0,83335.0,0.12260386]
[1743445599069,0.251991,83336.0,83334.0,0.0817]
[1743445599070,0.251994,83335.0,83334.0,0.0817]
[1743445599276,0.251994,83335.0,83334.0,0.22218]
[1743445599707,0.239995,83335.0,83334.0,0.22218]
[1743445600215,0.239987,83338.0,83335.0,0.239992]
[1743445600417,0.239995,83336.0,83334.0,0.22018]
[1743445600675,0.239995,83335.0,83334.0,0.22018]
[1743445601053,0.239959,83348.0,83336.0,0.011999]
[1743445601280,0.0001685,83355.0,83354.0,0.251937]
[1743445601453,0.0001685,83355.0,83354.0,0.38042]
[1743445601790,0.0001685,83355.0,83354.0,0.392417]
[1743445601996,0.0001685,83355.0,83354.0,0.97667461]
[1743445602197,0.0001685,83355.0,83354.0,1.05277461]
[1743445604149,0.0031685,83355.0,83354.0,1.05277461]
[1743445604672,0.0011685,83355.0,83354.0,1.05277461]
[1743445604866,0.0031685,83355.0,83354.0,1.05277461]
[1743445607014,0.0031685,83355.0,83354.0,1.06731546]
[1743445607228,0.0031685,83355.0,83354.0,1.36731546]
[1743445607434,0.0031685,83355.0,83354.0,1.86731546]
[1743445607832,0.0011685,83355.0,83354.0,1.86731546]
[1743445608037,0.0001685,83355.0,83354.0,1.87031546]
[1743445608238,0.0001685,83355.0,83354.0,1.87531546]
[1743445608651,0.0001685,83355.0,83354.0,1.87231546]
[1743445608873,0.0001685,83355.0,83354.0,1.88343625]
[1743445609083,0.0001685,83355.0,83354.0,1.88339625]
[1743445609493,0.0001685,83355.0,83354.0,1.88939625]
[1743445609836,0.0001685,83355.0,83354.0,1.87827546]
[1743445610902,0.0001685,83364.0,83363.0,0.011995]
[1743445611025,0.00030748,83364.0,83363.0,1.09077217]
[1743445611381,0.00030748,83364.0,83363.0,1.08837371]
[1743445612150,0.00030748,83364.0,83363.0,1.59237371]
[1743445612546,0.00030748,83364.0,83363.0,1.58083286]
[1743445612961,0.00030748,83364.0,83363.0,1.39272386]
[1743445613195,0.25221348,83364.0,83363.0,1.25232386]
[1743445613362,0.25221348,83364.0,83363.0,1.39272386]
[1743445613568,0.24021848,83364.0,83363.0,0.75232386]
[1743445613773,0.00030748,83364.0,83363.0,1.13263786]
[1743445613974,0.00030748,83364.0,83363.0,1.14463286]
[1743445614189,0.00030748,83364.0,83363.0,0.89272386]
[1743445616317,0.00030748,83364.0,83363.0,1.13263786]
[1743445616773,0.00030748,83364.0,83363.0,1.65325896]
[1743445616983,0.00030748,83364.0,83363.0,1.70265896]
[1743445617948,0.00030748,83364.0,83363.0,2.20265896]
[1743445624115,0.00030748,83364.0,83363.0,2.21464331]
[1743445625074,0.00030748,83364.0,83363.0,2.51464331]
[1743445625704,0.00030748,83364.0,83363.0,2.91464331]
[1743445625926,0.00030748,83364.0,83363.0,2.51464331]
[1743445626131,4.8e-07,83364.0,83363.0,2.51464331]
[1743445626346,4.8e-07,83364.0,83363.0,2.91464331]
[1743445626553,9.8e-07,83376.0,83375.0,0.69571485]
[1743445626760,0.0001684,83391.0,83390.0,0.251827]
[1743445626962,0.00030735,83391.0,83390.0,0.59515086]
[1743445627162,0.00030735,83391.0,83390.0,1.00913513]
[1743445627596,0.00030735,83391.0,83390.0,0.53838813]
[1743445627776,0.00030735,83391.0,83390.0,0.93053513]
[1743445627977,0.25213235,83391.0,83390.0,0.55610427]
[1743445628401,0.25313235,83391.0,83390.0,0.55610427]
[1743445628608,0.24314135,83391.0,83390.0,0.55610427]
[1743445628823,0.00330735,83391.0,83390.0,0.79594027]
[1743445628964,0.00330735,83391.0,83390.0,0.93053513]
[1743445629576,0.00330735,83391.0,83390.0,0.67870813]
[1743445629807,0.00330735,83391.0,83390.0,0.55610427]
[1743445629808,0.25513235,83391.0,83390.0,0.55610427]
[1743445631325,0.25513235,83391.0,83390.0,0.41578427]
[1743445631540,0.25513235,83391.0,83390.0,0.55610427]
[1743445634795,0.24314135,83391.0,83390.0,0.55610427]
[1743445635000,0.00330735,83391.0,83390.0,0.80613127]
[1743445635198,0.00330735,83391.0,83390.0,0.91674413]
[1743445635999,0.00330735,83391.0,83390.0,0.67690813]
[1743445636576,0.25513235,83391.0,83390.0,0.67690813]
[1743445637000,0.00330735,83391.0,83390.0,0.67690813]
[1743445637419,0.24314135,83391.0,83390.0,0.67690813]
[1743445637589,0.25513235,83391.0,83390.0,0.67690813]
[1743445638843,0.25513235,83391.0,83390.0,0.67480813]
[1743445639252,0.24314135,83391.0,83390.0,0.67480813]
[1743445639669,0.00330735,83391.0,83390.0,0.67480813]
[1743445639959,0.24314135,83391.0,83390.0,0.67480813]
[1743445640163,0.25513235,83391.0,83390.0,0.55220427]
[1743445641252,0.24314135,83391.0,83390.0,0.55220427]
[1743445642532,0.24314135,83391.0,83390.0,0.55010427]
[1743445642986,0.2482769,83392.0,83390.0,0.55010427]
[1743445643210,0.011991,83391.0,83390.0,0.55010427]
[1743445643465,0.251825,83391.0,83390.0,0.55006427]
[1743445645047,0.251825,83391.0,83390.0,0.55040087]
[1743445645211,0.2519933,83391.0,83390.0,0.55040087]
[1743445647459,0.0001683,83391.0,83390.0,0.80222787]
[1743445647656,0.0001683,83391.0,83390.0,0.55040087]
[1743445647789,0.2400023,83391.0,83390.0,0.55040087]
[1743445648870,0.0001683,83391.0,83390.0,0.55040087]
[1743445649076,0.2400023,83391.0,83390.0,0.55040087]
[1743445649289,0.2400023,83391.0,83390.0,0.41012087]
[1743445649290,0.2519933,83391.0,83390.0,0.41012087]
[1743445649422,0.2519933,83391.0,83390.0,0.55040087]
[1743445650005,0.011991,83391.0,83390.0,0.55040087]
[1743445650224,0.251825,83391.0,83390.0,0.55040087]
[1743445651875,7.772e-05,83392.0,83390.0,0.55040087]
[1743445652280,0.25189972,83392.0,83390.0,0.55040087]
[1743445652713,0.251825,83391.0,83390.0,0.55040087]
[1743445654808,0.251825,83391.0,83390.0,0.1406166]
[1743445656740,0.251825,83391.0,83390.0,0.0003366]
[1743445656946,0.251825,83391.0,83390.0,0.1405766]
[1743445658227,0.2519933,83391.0,83390.0,0.1405766]
[1743445659705,0.0001683,83391.0,83390.0,0.1405766]
[1743445659915,0.0001683,83391.0,83390.0,0.3924036]
[1743445660150,0.0001683,83391.0,83390.0,0.1405766]
[1743445660574,0.2400023,83391.0,83390.0,0.1405766]
[1743445661863,0.2519933,83391.0,83390.0,0.1405766]
[1743445665343,0.2519933,83391.0,83390.0,0.0003366]
[1743445665563,0.77654926,83391.0,83390.0,0.0003366]
[1743445665770,0.75489716,83391.0,83390.0,6e-07]
[1743445665976,0.77367347,83391.0,83390.0,6e-07]
[1743445666953,0.65106961,83391.0,83390.0,6e-07]
[1743445667542,0.57076961,83391.0,83390.0,6e-07]
[1743445667767,0.5519933,83391.0,83390.0,6e-07]
[1743445670357,0.5539933,83391.0,83390.0,6e-07]
[1743445670597,0.2539933,83391.0,83390.0,6e-07]
[1743445675094,0.2539933,83391.0,83390.0,0.1402006]
[1743445675331,0.3027933,83391.0,83390.0,6e-07]
[1743445675546,0.72539716,83391.0,83390.0,6e-07]
[1743445675887,0.011994,83369.0,83368.0,0.62256]
[1743445676093,0.251891,83369.0,83368.0,0.62256]
[1743445677085,0.251891,83369.0,83368.0,0.76576]
[1743445677290,0.239895,83370.0,83368.0,0.84596]
[1743445677670,0.011994,83369.0,83368.0,0.84396]
[1743445677884,0.239891,83372.0,83368.0,0.84296]
[1743445678038,0.239897,83369.0,83368.0,0.84296]
[1743445678241,0.251891,83369.0,83368.0,0.76276]
[1743445679171,0.251891,83369.0,83368.0,0.76376]
[1743445680223,0.239897,83369.0,83368.0,0.76476]
[1743445680453,0.251891,83369.0,83368.0,0.76476]
[1743445680636,0.251891,83369.0,83368.0,0.76276]
[1743445680843,0.251891,83369.0,83368.0,0.62256]
[1743445681043,0.251891,83369.0,83368.0,0.76476]
[1743445681470,0.251891,83369.0,83368.0,0.7650966]
[1743445681876,0.251891,83369.0,83368.0,0.6248966]
[1743445682080,0.251891,83369.0,83368.0,0.7650966]
[1743445682518,0.251891,83369.0,83368.0,0.6248966]
[1743445682685,0.251891,83369.0,83368.0,0.7650966]
[1743445683519,0.251891,83369.0,83368.0,0.6238966]
[1743445683781,0.25193,83356.0,83355.0,0.0003368]
[1743445683944,0.25193,83356.0,83355.0,0.1405368]
[1743445685190,0.25193,83356.0,83355.0,0.14067575]
[1743445687390,0.25293,83356.0,83355.0,0.14067575]
[1743445687781,0.25193,83356.0,83355.0,0.14067575]
[1743445688783,0.25193,83356.0,83355.0,0.00047575]
[1743445688987,0.81950426,83356.0,83355.0,7.5e-07]
[1743445690079,0.46800386,83356.0,83355.0,7.5e-07]
[1743445690332,0.71993386,83356.0,83355.0,7.5e-07]
[1743445691486,0.72493386,83356.0,83355.0,7.5e-07]
[1743445691685,0.72193386,83356.0,83355.0,7.5e-07]
[1743445691906,0.71993386,83356.0,83355.0,7.5e-07]
[1743445692054,0.72493386,83356.0,83355.0,7.5e-07]
[1743445692280,0.74371781,83356.0,83355.0,7.5e-07]
[1743445693359,0.73871781,83356.0,83355.0,7.5e-07]
[1743445693564,0.69631781,83356.0,83355.0,7.5e-07]
[1743445693823,0.69831781,83356.0,83355.0,7.5e-07]
[1743445694046,0.69531781,83356.0,83355.0,0.00033735]
[1743445694200,0.81892167,83356.0,83355.0,0.00033735]
[1743445694402,0.82092167,83356.0,83355.0,0.00033735]
[1743445695373,0.69831781,83356.0,83355.0,0.00033735]
[1743445696915,0.73437781,83356.0,83355.0,0.00033735]
[1743445697753,0.71559386,83356.0,83355.0,0.00033735]
[1743445700293,0.90048192,83356.0,83355.0,0.00033735]
[1743445702162,0.9192658,83356.0,83355.0,0.00033735]
[1743445703610,1.04186966,83356.0,83355.0,0.00033735]
[1743445705068,0.9192658,83356.0,83355.0,0.00033735]
[1743445705932,0.74181806,83356.0,83355.0,0.00033735]
[1743445707708,0.74198646,83356.0,83355.0,0.00033735]
[1743445709133,0.44198646,83356.0,83355.0,0.00033735]
[1743445712635,0.15417998,83356.0,83355.0,0.00033735]
[1743445712884,0.4087898,83356.0,83355.0,0.00033735]
[1743445713171,0.40610998,83356.0,83355.0,0.00033735]
[1743445713659,0.40610998,83356.0,83355.0,0.14053735]
[1743445714128,0.40610998,83356.0,83355.0,0.14049735]
[1743445716782,0.40610998,83356.0,83355.0,0.00033735]
[1743445716998,0.40610998,83356.0,83355.0,0.14049735]
[1743445718831,0.15417998,83356.0,83355.0,0.21839735]
[1743445719046,0.15417998,83356.0,83355.0,0.26439735]
[1743445719242,0.15417998,83356.0,83355.0,0.51633035]
[1743445719609,0.15417998,83356.0,83355.0,1.04871848]
[1743445719813,0.0497683,83391.0,83355.0,1.04871848]
[1743445719814,0.03605,83378.0,83377.0,0.375767]
[1743445720024,0.0001683,83391.0,83389.0,0.25183]
[1743445720232,0.0001683,83391.0,83389.0,0.32683]
[1743445720445,0.0001683,83391.0,83389.0,0.32503]
[1743445720723,0.0001683,83391.0,83389.0,0.075]
[1743445721128,0.2400043,83390.0,83389.0,0.075]
[1743445721330,0.25304528,83390.0,83389.0,0.075]
[1743445722518,0.00121828,83390.0,83389.0,0.0732]
[1743445722724,0.00121828,83390.0,83389.0,0.313039]
[1743445722929,0.00121828,83390.0,83389.0,0.311239]
[1743445723150,0.00121828,83390.0,83389.0,0.0681]
[1743445723382,0.00021828,83390.0,83389.0,0.0681]
[1743445723586,0.00221828,83390.0,83389.0,0.0681]
[1743445724003,0.00121828,83390.0,83389.0,0.0681]
[1743445724522,0.00021828,83390.0,83389.0,0.0681]
[1743445725088,0.00021828,83390.0,83389.0,0.307939]
[1743445725301,0.00021828,83390.0,83389.0,0.85431813]
[1743445731003,0.00021828,83390.0,83389.0,0.85221813]
[1743445732375,0.00021828,83390.0,83389.0,0.60038813]
[1743445732624,0.00021828,83390.0,83389.0,0.61782427]
[1743445733569,0.25204528,83390.0,83389.0,0.55182427]
[1743445734227,0.25204528,83390.0,83389.0,0.55216107]
[1743445735557,0.24005428,83390.0,83389.0,0.55016107]
[1743445735829,0.00021828,83390.0,83389.0,0.55016107]
[1743445736049,0.01220928,83390.0,83389.0,0.55016107]
[1743445736482,0.25204528,83390.0,83389.0,0.55016107]
[1743445736913,0.00021828,83390.0,83389.0,0.55016107]
[1743445737123,0.00021828,83390.0,83389.0,0.79000007]
[1743445737660,0.00021828,83390.0,83389.0,0.55016107]
[1743445738085,0.00021828,83390.0,83389.0,0.79000007]
[1743445738728,0.00021828,83390.0,83389.0,0.92459493]
[1743445738957,0.00021828,83390.0,83389.0,1.00529493]
[1743445739159,0.00021828,83390.0,83389.0,1.05099493]
[1743445744336,0.00021828,83390.0,83389.0,1.56553578]
[1743445744746,0.00021828,83390.0,83389.0,1.86553578]
[1743445745120,0.00021828,83390.0,83389.0,1.85099493]
[1743445745314,0.00021828,83390.0,83389.0,1.55699493]
[1743445745840,0.00021828,83390.0,83389.0,1.56199493]
[1743445746048,0.00021828,83390.0,83389.0,1.31016493]
[1743445746249,0.00021828,83390.0,83389.0,1.55000393]
[1743445746454,0.00021828,83390.0,83389.0,1.56199493]
[1743445746667,0.00021828,83390.0,83389.0,1.93268493]
[1743445746849,0.00021828,83390.0,83389.0,1.68451493]
[1743445747052,0.00021828,83390.0,83389.0,1.68447493]
[1743445748791,0.00021828,83390.0,83389.0,2.18447493]
[1743445750452,0.00021828,83390.0,83389.0,2.49901578]
[1743445751578,0.00021828,83390.0,83389.0,2.51011576]
[1743445751774,0.00021828,83390.0,83389.0,2.35557491]
[1743445752056,0.00021828,83390.0,83389.0,2.48354391]
[1743445752246,0.00021828,83390.0,83389.0,2.49553491]
[1743445752844,0.00021828,83390.0,83389.0,2.48443493]
[1743445753225,0.00021828,83390.0,83389.0,2.18443493]
[1743445756562,0.00021828,83390.0,83389.0,1.68443493]
[1743445756767,0.00021828,83390.0,83389.0,1.67943493]
[1743445756971,0.00021828,83390.0,83389.0,1.68443493]
[1743445757169,0.00021828,83390.0,83389.0,1.67843493]
[1743445757401,0.00021828,83390.0,83389.0,1.68343493]
[1743445758032,0.00021828,83390.0,83389.0,1.67343493]
[1743445758244,0.00021828,83390.0,83389.0,1.68343493]
[1743445758665,0.00021828,83390.0,83389.0,1.69797578]
[1743445761513,0.00021828,83390.0,83389.0,2.19797578]
[1743445764451,0.00021828,83390.0,83389.0,2.18339493]
[1743445764666,0.00021828,83390.0,83389.0,2.13769493]
[1743445767899,0.00021828,83390.0,83389.0,2.15223578]
[1743445770663,0.00021828,83390.0,83389.0,2.16407976]
[1743445771016,0.00021828,83390.0,83389.0,2.21067976]
[1743445771845,0.00021828,83390.0,83389.0,2.51067976]
[1743445772533,0.75,83400.0,83399.0,0.239811]
[1743445772718,0.75,83400.0,83399.0,0.47214571]
[1743445773724,0.75,83400.0,83399.0,0.47614571]
[1743445775335,0.75,83400.0,83399.0,1.2282434]
[1743445775747,0.75,83400.0,83399.0,1.7282434]
[1743445777673,7.7e-07,83413.0,83412.0,0.551761]
[1743445777893,7.7e-07,83413.0,83412.0,0.94968571]
[1743445778077,9.1e-07,83413.0,83412.0,0.94918571]
[1743445778544,9.1e-07,83413.0,83412.0,1.44918571]
[1743445779679,3.1e-07,83420.0,83419.0,0.68718085]
[1743445779889,0.00011691,83420.0,83419.0,1.43214471]
[1743445780912,0.00011691,83420.0,83419.0,1.43814471]
[1743445781566,0.00011691,83420.0,83419.0,1.93814471]
[1743445781784,0.00011691,83420.0,83419.0,2.33814471]
[1743445782170,0.00011691,83420.0,83419.0,2.33514471]
[1743445782570,0.00011691,83420.0,83419.0,1.94014471]
[1743445782796,0.00011691,83420.0,83419.0,1.93714471]
[1743445783155,0.00011691,83420.0,83419.0,1.94214471]
[1743445783997,0.0001685,83440.0,83437.0,0.011985]
[1743445784197,0.0001685,83440.0,83437.0,0.76689589]
[1743445787262,0.0001685,83440.0,83437.0,0.81385589]
[1743445788842,0.0001685,83440.0,83437.0,1.11385589]
[1743445789456,0.0001685,83440.0,83437.0,1.12604187]
[1743445790066,2.6e-07,83440.0,83439.0,0.80444603]
[1743445790312,2.6e-07,83440.0,83439.0,1.00634989]
[1743445790708,2.6e-07,83440.0,83439.0,1.90634989]
[1743445791333,2.6e-07,83440.0,83439.0,1.90834989]
[1743445791887,2.6e-07,83440.0,83439.0,1.90634989]
[1743445792283,2.6e-07,83440.0,83439.0,1.91234989]
[1743445792990,2.6e-07,83440.0,83439.0,1.91834989]
[1743445793336,2.6e-07,83440.0,83439.0,1.51834989]
[1743445794263,2.6e-07,83440.0,83439.0,2.14042989]
[1743445796278,2.6e-07,83440.0,83439.0,2.28018989]
[1743445798551,0.00043334,83450.0,83449.0,0.02652385]
[1743445798755,0.00057218,83450.0,83449.0,0.6911907]
[1743445798958,0.00057218,83450.0,83449.0,0.68879471]
[1743445799906,0.00057218,83450.0,83449.0,0.69279471]
[1743445800561,0.00057218,83450.0,83449.0,1.19679471]
[1743445800987,0.00057218,83450.0,83449.0,1.32201386]
[1743445801613,0.00057218,83450.0,83449.0,1.18225386]
[1743445801815,0.00057218,83450.0,83449.0,1.08234686]
[1743445802056,0.00057218,83450.0,83449.0,1.32201386]
[1743445802825,0.00057218,83450.0,83449.0,0.82201386]
[1743445803633,0.00074048,83450.0,83449.0,0.82201386]
[1743445804034,0.00074048,83450.0,83449.0,0.82197386]
[1743445804470,0.00074048,83450.0,83449.0,1.06019878]
[1743445804759,0.00074048,83450.0,83449.0,1.07473963]
[1743445808715,0.00074048,83450.0,83449.0,1.69669963]
[1743445809113,0.00074048,83450.0,83449.0,1.68215878]
[1743445809340,0.23064232,83462.0,83450.0,0.539662]
[1743445809544,0.23965,83455.0,83452.0,0.3]
[1743445809739,0.00053981,83463.0,83456.0,0.239647]
[1743445809951,0.011981,83462.0,83453.0,0.36225886]
[1743445810192,0.239646,83457.0,83453.0,0.12260386]
[1743445810510,0.23963,83462.0,83457.0,0.239642]
[1743445810707,0.23963,83462.0,83456.0,0.251629]
[1743445810708,0.239632,83462.0,83456.0,0.251629]
[1743445810989,0.011981,83461.0,83454.0,0.13972]
[1743445811192,0.23965,83455.0,83454.0,0.26232386]
[1743445812173,0.239644,83457.0,83454.0,0.26232386]
[1743445812602,0.239647,83456.0,83454.0,0.26232386]
[1743445812806,0.23965,83455.0,83454.0,0.26232386]
[1743445813025,0.0456,83464.0,83459.0,0.011981]
[1743445813202,0.239624,83464.0,83460.0,0.36082878]
[1743445813442,0.239624,83464.0,83461.0,0.62196]
[1743445813801,0.239624,83464.0,83462.0,0.12260386]
[1743445814007,0.010055,83465.0,83462.0,0.37421486]
[1743445814711,0.010055,83465.0,83462.0,0.12260386]
[1743445814921,0.010055,83465.0,83462.0,0.37421486]
[1743445815772,0.00070811,83463.0,83462.0,0.37421486]
[1743445817202,0.00070811,83463.0,83462.0,1.00368063]
[1743445817562,0.00070811,83463.0,83462.0,1.50368063]
[1743445818176,0.002,83469.0,83468.0,0.64283285]
[1743445818383,0.002,83469.0,83468.0,1.13332652]
[1743445818729,0.002,83469.0,83468.0,1.53332652]
[1743445818938,0.0001684,83474.0,83471.0,0.551584]
[1743445819147,5.5e-07,83475.0,83474.0,0.64281485]
[1743445819348,5.5e-07,83475.0,83474.0,0.76541871]
[1743445819555,5.5e-07,83475.0,83474.0,1.16541871]
[1743445820150,5.5e-07,83475.0,83474.0,0.90509871]
[1743445820382,5.5e-07,83475.0,83474.0,0.76541871]
[1743445820519,5.5e-07,83475.0,83474.0,0.81785786]
[1743445820723,5.5e-07,83475.0,83474.0,1.31785786]
[1743445821022,5.5e-07,83475.0,83474.0,1.32185786]
[1743445821246,5.5e-07,83475.0,83474.0,1.07028386]
[1743445821701,5.5e-07,83475.0,83474.0,1.30987886]
[1743445822125,5.5e-07,83475.0,83474.0,1.53804867]
[1743445822511,0.23959255,83475.0,83474.0,0.99845367]
[1743445822848,0.23556182,83476.0,83474.0,0.99845367]
[1743445823047,0.00013881,83476.0,83475.0,0.12260386]
[1743445823885,0.00013881,83476.0,83475.0,0.36219586]
[1743445824280,0.00013881,83476.0,83475.0,0.36619586]
[1743445824632,0.25170681,83476.0,83475.0,0.35477367]
[1743445824847,0.25170681,83476.0,83475.0,0.49845367]
[1743445825404,0.29810681,83476.0,83475.0,0.37584981]
[1743445825788,0.29810681,83476.0,83475.0,0.23616981]
[1743445825987,0.29810681,83476.0,83475.0,0.37584981]
[1743445826380,0.29810681,83476.0,83475.0,0.37184981]
[1743445826587,0.29810681,83476.0,83475.0,0.36784981]
[1743445826772,0.29810681,83476.0,83475.0,0.36984981]
[1743445826912,0.29810681,83476.0,83475.0,0.14068]
[1743445827357,0.29810681,83476.0,83475.0,0.13968]
[1743445830247,0.79810681,83476.0,83475.0,0.13968]
[1743445833021,0.78612781,83476.0,83475.0,0.13968]
[1743445833256,0.75170681,83476.0,83475.0,0.13968]
[1743445836394,0.50013881,83476.0,83475.0,0.82312467]
[1743445836603,0.50013881,83476.0,83475.0,0.88636552]
[1743445836998,0.50013881,83476.0,83475.0,1.18636552]
[1743445837624,0.50013881,83476.0,83475.0,1.68636552]
[1743445838476,0.50013881,83476.0,83475.0,1.69036552]
[1743445838846,0.50013881,83476.0,83475.0,1.69436552]
[1743445839250,0.50013881,83476.0,83475.0,1.69036552]
[1743445839453,0.50013881,83476.0,83475.0,1.69536552]
[1743445839653,0.50013881,83476.0,83475.0,1.69136552]
[1743445839865,0.50013881,83476.0,83475.0,1.69636552]
[1743445841051,0.50013881,83476.0,83475.0,1.69670192]
[1743445841400,0.50013881,83476.0,83475.0,1.71749619]
[1743445842193,0.50013881,83476.0,83475.0,1.70559843]
[1743445846426,0.50013881,83476.0,83475.0,2.32739843]
[1743445848194,0.50013881,83476.0,83475.0,2.72739843]
[1743445848417,0.50013881,83476.0,83475.0,2.32739843]
[1743445849253,0.28431228,83476.0,83475.0,2.32739843]
[1743445853679,0.28448048,83476.0,83475.0,2.32739843]
[1743445854420,0.28448048,83476.0,83475.0,2.32731843]
[1743445855940,0.05631067,83476.0,83475.0,2.09914862]
[1743445856151,7.8e-07,83488.0,83484.0,0.3]
[1743445856363,7.8e-07,83488.0,83487.0,0.38867971]
[1743445856564,7.8e-07,83488.0,83487.0,0.78867971]
[1743445857228,7.8e-07,83488.0,83487.0,1.75847971]
[1743445857447,7.8e-07,83488.0,83487.0,2.47997971]
[1743445857651,7.8e-07,83488.0,83487.0,2.48597971]
[1743445857867,5.1e-07,83500.0,83499.0,0.64613985]
[1743445858037,5.1e-07,83500.0,83499.0,0.90834371]
[1743445858252,5.1e-07,83500.0,83499.0,1.03464371]
[1743445858590,5.1e-07,83500.0,83499.0,0.90834371]
[1743445859023,5.1e-07,83500.0,83499.0,1.40834371]
[1743445859427,5.1e-07,83500.0,83499.0,1.25420286]
[1743445859722,5.1e-07,83500.0,83499.0,1.80976286]
[1743445859929,5.1e-07,83500.0,83499.0,1.82430371]
[1743445860342,5.1e-07,83500.0,83499.0,1.69074371]
[1743445860545,5.1e-07,83500.0,83499.0,1.83030371]
[1743445860952,5.1e-07,83500.0,83499.0,1.83630371]
[1743445861536,5.1e-07,83500.0,83499.0,1.69674371]
[1743445861735,5.1e-07,83500.0,83499.0,1.83630371]
[1743445862338,5.1e-07,83500.0,83499.0,1.05060386]
[1743445862547,5.1e-07,83500.0,83499.0,1.19016386]
[1743445863197,5.1e-07,83500.0,83499.0,1.18416386]
[1743445863409,5.1e-07,83500.0,83499.0,1.17816386]
[1743445863595,5.1e-07,83500.0,83499.0,0.68016386]
[1743445863773,5.1e-07,83500.0,83499.0,0.68216386]
[1743445863971,0.25149651,83500.0,83499.0,0.55556]
[1743445864170,0.25149651,83500.0,83499.0,0.55956]
[1743445864334,0.25149651,83500.0,83499.0,0.56356]
[1743445864535,5.1e-07,83500.0,83499.0,0.93766286]
[1743445864965,5.1e-07,83500.0,83499.0,0.94820371]
[1743445865163,5.1e-07,83500.0,83499.0,1.24820371]
[1743445865374,5.1e-07,83500.0,83499.0,1.25120371]
[1743445865580,5.1e-07,83500.0,83499.0,1.24720371]
[1743445865781,5.1e-07,83500.0,83499.0,2.14720371]
[1743445866030,5.1e-07,83500.0,83499.0,1.74754011]
[1743445866238,0.0001685,83504.0,83503.0,0.551487]
[1743445866445,1.1e-07,83513.0,83512.0,0.55146]
[1743445866680,0.00046301,83513.0,83512.0,1.39164471]
[1743445866853,0.00046301,83513.0,83512.0,1.38984471]
[1743445867310,0.00046301,83513.0,83512.0,1.88984471]
[1743445867459,0.00046301,83513.0,83512.0,1.89384471]
[1743445867861,0.00046301,83513.0,83512.0,1.89784471]
[1743445868070,0.00046301,83513.0,83512.0,2.03736471]
[1743445870271,0.00046301,83513.0,83512.0,2.43736471]
[1743445871069,0.00046301,83513.0,83512.0,2.43596471]
[1743445871466,0.011969,83549.0,83540.0,0.239403]
[1743445871774,0.239387,83547.0,83541.0,0.68051712]
[1743445871948,0.00088665,83550.0,83544.0,0.239393]
[1743445872415,0.00088665,83550.0,83549.0,0.011969]
[1743445872616,0.00088665,83550.0,83549.0,0.15150714]
[1743445872819,0.00088665,83550.0,83549.0,0.86750663]
[1743445872993,0.00088665,83550.0,83549.0,0.8651132]
[1743445873222,0.00088665,83550.0,83549.0,1.0046332]
[1743445874299,0.00088665,83550.0,83549.0,1.5046332]
[1743445874496,0.00088665,83550.0,83549.0,1.4926642]
[1743445874908,0.00088665,83550.0,83549.0,1.5046332]
[1743445876696,0.00088665,83550.0,83549.0,1.5056332]
[1743445877774,0.00088665,83550.0,83549.0,1.4936242]